Cogmind - Beta 15 @@@ ROGUE MODE // 2025.08.18 @ 00:59:04 Player: chebyrekser Result: Destroyed by P-80 Master with Gamma Rifle Performance ------------- Evolutions (7) 3500 Regions Visited (18) 3600 Robots Destroyed (302) 1510 Value Destroyed (14188) 14188 Prototype IDs (20) 400 Alien Tech Used (0) 0 Bonus (8970) 8970 TOTAL SCORE: 32168 Bonus ------- Triggered High Security 500 High Alert Combat Kills 3206 Follower Combat Kills 888 Entered Garrisons 1400 Used RIF Installer 3000 Friendly Fire -24 Cogmind --------- Core Integrity 0/1300 Matter 183/300 Energy 100/100 System Corruption 1% Temperature Cool (0) Movement Core (50) Location -3/Garrison Parts ------- > --- POWER (2) -------- (None) > --- PROPULSION (4) --- (None) > --- UTILITY (11) ----- (None) > --- WEAPON (4) ------- (None) > --- INVENTORY (5) ---- Improved Medium Treads Cooled Impulse Thruster Medium Storage Unit Propulsion Shielding Matter Neutralizer Peak State ------------ > --- POWER ------------ Improved Deuterium Engine Angular Momentum Engine > --- PROPULSION ------- Light Treads Improved Treads Heavy Siege Treads > --- UTILITY ---------- Huge Storage Unit Improved Signal Interpreter Advanced Targeting Computer Core Analyzer Active Sensor Spoofer Medium Reflective Plating Relay Coupler [Grunt] > --- WEAPON ----------- Heavy Plasma Cannon Heavy Linear Accelerator Remote Datajack > --- INVENTORY -------- Improved Deuterium Engine Neutrino Core Light Antimatter Reactor Improved Treads Improved Treads Armored Heavy Treads Advanced Cryofiber Web Advanced Heat Sink Matter Compressor Structural Scanner Improved Sensor Array Improved Medium Armor Plating Improved Medium Armor Plating Advanced Shield Generator Relay Coupler [NC] Relay Coupler [Brawler] Relay Coupler [Sentry] High-powered Tractor Beam Variable Charge Gun Variable Charge Gun Heavy Linear Accelerator Plasma Cutter [Rating: 87] Favorites ----------- Power Light Angular Momentum Engine Engine Light Angular Momentum Engine Power Core Neutrino Core Reactor Light Antimatter Reactor Propulsion Light Treads Treads Light Treads Wheel Armored Wheel Flight Unit Impulse Thruster Utility Advanced Targeting Computer Device Advanced Heat Sink Storage Huge Storage Unit Processor Advanced Targeting Computer Hackware Relay Coupler [Grunt] Protection Improved Medium Armor Plating Weapon Enhanced Autogun Energy Gun Beam Rifle Energy Cannon Heavy Plasma Cannon Ballistic Gun Enhanced Autogun Ballistic Cannon Gauss Cannon Launcher Grenade Launcher Special Weapon Remote Datajack Impact Weapon Maul Slashing Weapon Axe Build | -11 -10 -9 -8 -8 -8 -8 -7 -7 -7 -7 -6 -6 -6 -6 -5 -4 -3 -3 ------- Run | Yrd Mat Mat Mat Gar Mat Gar Fac Gar Fac Gar Fac Gar Fac Gar Fac Fac Res Gar Slots Evolved 14 | . . 2 2 . . . 2 . . . 2 . . . 2 2 2 . Power 1 | . . . . . . . . . . . 1 . . . . . . . Propulsion 2 | . . 1 . . . . 1 . . . . . . . . . . . Utility 9 | . . 1 1 . . . 1 . . . 1 . . . 1 2 2 . Weapon 2 | . . . 1 . . . . . . . . . . . 1 . . . Parts Attached 201 | 9 6 11 27 7 6 9 11 12 11 17 5 28 . 10 16 11 1 4 Power 21 | 1 . 1 3 . 1 2 . 1 1 1 1 5 . 1 3 . . . Engine 19 | 1 . 1 3 . 1 2 . 1 1 1 1 5 . 1 1 . . . Core 1 | . . . . . . . . . . . . . . . 1 . . . Reactor 1 | . . . . . . . . . . . . . . . 1 . . . Propulsion 52 | 3 1 2 9 3 1 2 5 1 3 4 1 4 . 4 3 2 . 4 Treads 37 | 2 1 1 7 2 1 2 3 1 2 3 . 4 . 4 3 . . 1 Leg . | . . . . . . . . . . . . . . . . . . . Wheel 10 | 1 . 1 2 1 . . 2 . 1 1 1 . . . . . . . Hover . | . . . . . . . . . . . . . . . . . . . Flight 5 | . . . . . . . . . . . . . . . . 2 . 3 Utility 70 | 2 1 2 7 2 . 2 4 9 6 6 2 11 . 2 7 7 . . Device 21 | 1 . 1 2 1 . . 1 . 3 1 1 5 . 1 1 3 . . Storage 6 | 1 1 1 . . . . 1 . . 1 . . . . . 1 . . Processor 5 | . . . 1 . . . 1 . . . . 1 . . . 2 . . Hackware 22 | . . . . 1 . 1 . 7 3 1 1 4 . . 3 1 . . Protection 16 | . . . 4 . . 1 1 2 . 3 . 1 . 1 3 . . . Artifact . | . . . . . . . . . . . . . . . . . . . Weapon 58 | 3 4 6 8 2 4 3 2 1 1 6 1 8 . 3 3 2 1 . Energy Gun 14 | 3 1 . 4 1 1 1 . . . 1 . . . . 1 1 . . Energy Cannon 8 | . . . 1 . . . . . 1 . 1 4 . . . 1 . . Ballistic Gun 17 | . 2 4 2 1 . 1 1 . . 2 . 3 . 1 . . . . Ballistic Cannon 8 | . . . . . . . 1 . . 2 . 1 . 2 1 . 1 . Launcher 4 | . . . 1 . 2 . . 1 . . . . . . . . . . Special Weapon 5 | . 1 1 . . . 1 . . . 1 . . . . 1 . . . Impact Weapon 1 | . . 1 . . . . . . . . . . . . . . . . Slashing Weapon 1 | . . . . . 1 . . . . . . . . . . . . . Piercing Weapon . | . . . . . . . . . . . . . . . . . . . Special Melee Weapon . | . . . . . . . . . . . . . . . . . . . Unidentified Prototypes 12 | . . 2 4 . 2 . . . . 1 . . . . . 3 . . Corrupted Parts 2 | . . . . . . . . . . 1 . . . 1 . . . . System Corruption 17 | . . . . . . . . . . 8 . . . 9 . . . . Parts Lost 75 | . . . . 2 1 5 1 4 3 10 . 13 . 7 22 1 4 2 Power 11 | . . . . . . . . . 1 1 . 3 . 1 5 . . . Propulsion 27 | . . . . 1 . 2 . 2 1 3 . 3 . 4 7 . 2 2 Utility 19 | . . . . 1 . 1 1 2 . 2 . 2 . 1 6 1 2 . Weapon 18 | . . . . . 1 2 . . 1 4 . 5 . 1 4 . . . Highest Loss Streak 19 | . . . . 2 1 4 1 2 2 5 . 5 . 2 19 1 2 2 To Critical Strikes 1 | . . . . . . . . . . . . . . . 1 . . . Average Backups 20 | 4 10 16 19 19 19 18 19 23 23 24 24 22 23 21 20 4 4 4 Power 1 | . 1 1 1 1 1 1 2 3 1 1 1 1 2 2 2 . . . Propulsion 2 | 2 3 3 3 3 3 2 2 2 3 2 2 3 3 1 1 . 2 2 Utility 9 | . 1 3 6 5 7 6 7 9 9 12 13 12 13 13 12 2 1 1 Weapon 5 | 1 4 8 8 8 7 6 5 6 7 5 6 4 4 1 2 1 1 1 Tool/Special . | . . . . . . . . . . . . . . . . . . . Unused Backups 58 | . 3 9 4 . 1 2 4 4 5 6 1 5 . 6 2 1 2 3 Power 7 | . . 2 1 . . 1 . . 1 . . 2 . . . . . . Propulsion 11 | . 2 1 . . 1 1 2 . 2 . . 1 . . . . . 1 Utility 28 | . 1 3 2 . . . 1 4 2 5 . 1 . 4 1 1 1 2 Weapon 12 | . . 3 1 . . . 1 . . 1 1 1 . 2 1 . 1 . Tool/Special . | . . . . . . . . . . . . . . . . . . . Average Slot Usage (%) 91 | . 99 97 98 99 100 99 95 88 92 99 95 98 100 89 84 19 17 7 Engine 9 | . 13 11 9 9 9 8 7 7 7 6 9 12 13 13 10 . . . Treads 18 | . 28 22 18 23 18 18 15 15 14 19 15 18 20 23 15 . . . Wheel 6 | . . 10 8 2 9 9 12 7 8 10 10 6 6 . . . . . Device 7 | . 14 19 13 11 13 13 5 1 4 5 8 5 11 6 4 6 5 . Storage 7 | . 14 11 9 9 9 9 7 7 7 7 6 6 6 6 5 . . . Processor 13 | . . . 8 9 9 9 14 15 15 15 13 19 20 20 17 7 5 2 Hackware 1 | . . . . . . . . 2 3 1 3 1 . . 5 . . . Protection 4 | . . . 4 6 4 4 7 7 6 6 6 4 1 5 4 . . . Energy Gun 3 | . 15 10 8 9 9 8 . . . 3 3 . . . . . . . Energy Cannon 3 | . . . . . . . 6 6 6 3 2 5 6 5 4 . . . Ballistic Gun 8 | . 11 10 17 17 15 17 9 11 9 12 5 4 6 . . . . . Ballistic Cannon 3 | . . . . . . . 4 1 5 1 4 5 6 5 4 . . . Peak Build Rating 87 | 8 10 19 31 33 33 37 50 55 55 52 52 66 63 81 87 29 35 15 Average Rating 46 | 5 8 15 25 30 31 32 45 51 50 47 48 59 62 75 81 16 16 6 On Entrance 34 | . 8 10 18 31 31 33 37 50 51 47 46 52 63 62 79 1 27 3 Naked Turns 13 | . . . . . . . . . . . . . . . 1 . . 12 Heaviest Build 151 | 14 31 56 72 67 69 74 131 142 131 132 127 132 130 148 151 2 2 . Greatest Support 116 | 40 40 40 60 60 12 40 28 50 28 80 28 60 16 110 116 7 7 15 Greatest Overweight (x) 10 | . . 3 7 5 5 6 4 5 10 9 9 8 8 9 1 . . . Average Overweight (x) 3 | . . 1 4 2 4 4 3 4 4 4 5 6 7 1 . . . . Largest Inventory Capacity 25 | 8 15 20 20 20 20 20 25 25 25 25 25 25 25 25 25 5 5 5 Average Capacity 21 | 7 12 17 20 20 20 20 20 25 25 25 25 25 25 25 24 5 5 5 Most Carried 25 | 8 15 20 20 20 20 20 22 25 25 25 25 25 25 25 25 5 5 5 Average Carried 20 | 4 10 16 19 19 19 18 20 23 23 24 24 23 25 24 22 4 4 4 Final Capacity 25 | 8 15 20 20 20 20 20 25 25 25 25 25 25 25 25 5 5 5 5 Final Carried 25 | 8 15 20 20 20 19 20 22 25 25 25 25 25 25 24 5 5 4 5 Class Distribution -------------------- 18% | Scavenger-Gunner 15% | Bothacker-Gunner 13% | Mutant 12% | Tank 11% | Gunner 8% | Scavenger-Tank 7% | Bothacker-Tank 5% | Botlord-Tank 3% | Bothacker-Skirmisher Dominant Class ---------------- Mutant | -10/Materials Mutant | -9/Materials Tank | -8/Materials Scavenger-Tank | -8/Garrison Scavenger-Tank | -8/Materials Scavenger-Gunner | -8/Garrison Tank | -7/Factory Bothacker-Gunner | -7/Garrison Gunner | -7/Factory Bothacker-Tank | -7/Garrison Bothacker-Skirmisher | -6/Factory Scavenger-Gunner | -6/Garrison Scavenger-Gunner | -6/Factory Bothacker-Gunner | -6/Garrison Botlord-Tank | -5/Factory Mutant | -4/Factory Mutant | -3/Research Mutant | -3/Garrison Resources | -11 -10 -9 -8 -8 -8 -8 -7 -7 -7 -7 -6 -6 -6 -6 -5 -4 -3 -3 ----------- Run | Yrd Mat Mat Mat Gar Mat Gar Fac Gar Fac Gar Fac Gar Fac Gar Fac Fac Res Gar Matter Collected 10510 | 290 128 267 1327 365 356 608 657 981 728 1198 246 1516 . 985 600 18 190 50 Remotely 934 | . . . . . . . . . . . . 371 . 308 255 . . . Salvage Created 10872 | 197 253 461 1830 513 472 640 982 736 704 762 237 1230 . 594 1087 142 18 14 Parts 581 | 13 20 29 118 22 33 47 49 18 33 28 10 68 . 35 43 11 2 2 Haulers Intercepted 12 | . 2 1 6 . 2 . . . 1 . . . . . . . . . Recyclers Shooed 14 | . 1 2 1 . . . 3 . 6 . . . . . . . 1 . Parts Field Recycled . | . . . . . . . . . . . . . . . . . . . Retrieved Matter . | . . . . . . . . . . . . . . . . . . . Parts Self-Destructed . | . . . . . . . . . . . . . . . . . . . Prevented . | . . . . . . . . . . . . . . . . . . . Kills | -11 -10 -9 -8 -8 -8 -8 -7 -7 -7 -7 -6 -6 -6 -6 -5 -4 -3 -3 ------- Run | Yrd Mat Mat Mat Gar Mat Gar Fac Gar Fac Gar Fac Gar Fac Gar Fac Fac Res Gar Combat Hostiles Destroyed 236 | . 2 7 36 11 17 20 13 11 9 14 2 34 . 27 27 5 . 1 Melee 1 | . . . . . . . . . . . . . . . . . . 1 Guns 90 | . 2 7 23 8 7 15 4 5 2 7 1 5 . 1 3 . . . Cannons 74 | . . . . . . . 5 6 3 5 1 16 . 18 20 . . . AOE 69 | . . . 13 3 10 5 4 . 4 1 . 12 . 8 4 5 . . Classes Destroyed 19 | 2 3 2 4 1 . . . 1 . . . 3 . . 2 . . 1 Worker 5 | . . . 2 . 1 . . . 1 . . . . . . . 1 . Builder 6 | . . . 2 . 1 . 3 . . . . . . . . . . . Tunneler 11 | 4 1 . 1 . . . 2 . 2 . 1 . . . . . . . Hauler 12 | . 2 1 6 . 2 . . . 1 . . . . . . . . . Recycler 15 | 1 . 1 3 . . . 5 . 4 . 1 . . . . . . . Mechanic 1 | . . . . . . . . . . . . . . . 1 . . . Operator 2 | . . 1 . . . . . . . 1 . . . . . . . . Watcher 12 | . 2 . 5 . 1 . 1 . 1 . . 1 . . 1 . . . Swarmer 82 | . . . 16 3 10 8 6 . 3 . . 10 . 16 5 5 . . Cutter 3 | . . . . . . . . . . . . 3 . . . . . . Saboteur 1 | . . . . . . . . . . . . . . . . . . 1 Grunt 69 | . 2 4 12 5 5 6 2 6 2 4 . 13 . 2 6 . . . Brawler 1 | . . . . . . . . . . . . 1 . . . . . . Duelist 6 | . . . . . . . . 1 . . . 1 . 2 2 . . . Protector 1 | . . . . . . . . . . . . . . . 1 . . . Sentry 42 | . . 3 7 1 2 4 4 3 2 6 1 3 . 4 2 . . . Specialist 4 | . . . . . . . . . . . . 2 . . 2 . . . Hunter 6 | . . . 1 1 . . . 1 . . . . . . 3 . . . Programmer 22 | . . . . 1 . 2 1 1 2 4 1 1 . 3 6 . . . Thug 1 | . . . . . . . 1 . . . . . . . . . . . Best Kill Streak 12 | 3 1 2 6 3 11 7 8 3 4 4 2 7 . 4 12 5 1 1 Combat Bots Only 12 | . 1 2 5 3 8 7 3 3 3 4 2 7 . 4 12 5 . 1 Max Kills in Single Turn 5 | 1 1 2 4 2 3 2 2 1 2 1 1 3 . 3 4 5 1 1 Gunslinging . | . . . . . . . . . . . . . . . . . . . Exploded 5 | . . . 4 2 3 2 2 . 2 1 . 3 . 3 4 5 . . Melee 1 | . . . . . . . . . . . . . . . . . . 1 Uniques/NPCs Destroyed . | . . . . . . . . . . . . . . . . . . . Combat | -11 -10 -9 -8 -8 -8 -8 -7 -7 -7 -7 -6 -6 -6 -6 -5 -4 -3 -3 -------- Run | Yrd Mat Mat Mat Gar Mat Gar Fac Gar Fac Gar Fac Gar Fac Gar Fac Fac Res Gar Hostile Shots Fired 2166 | . 5 28 124 64 63 72 87 289 124 324 17 264 . 177 338 31 99 60 Missed 704 | . 1 8 35 19 16 19 24 105 47 93 7 98 . 46 91 16 49 30 Hits 1462 | . 4 20 89 45 47 53 63 184 77 231 10 166 . 131 247 15 50 30 Melee 22 | . . . . . . . . . . . . 12 . 2 1 . . 7 Projectile 1440 | . 4 20 89 45 47 53 63 184 77 231 10 154 . 129 246 15 50 23 AOE 1 | . . . . . . . . . . . . . . . . . . 1 Critical Strikes 44 | . . . 6 . 1 5 . 1 1 3 . 6 . 3 8 1 3 6 Part Disruptions 3 | . . . . . . 1 . . . 1 . . . . 1 . . . Damage Taken 16863 | 36 58 197 834 502 428 638 427 1310 656 1645 63 2248 . 1645 4381 288 1071 436 Core 3000 | . 12 51 84 24 72 71 39 153 25 129 6 236 . 60 504 227 951 356 Absorbed by Shields 1909 | . . 73 327 178 188 112 130 170 100 275 22 243 . . 19 . . 72 Ignored by Resistances 772 | . . . 83 . . 6 120 255 111 166 . . . . 31 . . . Regen/Repaired (Parts) 55 | . 34 21 . . . . . . . . . . . . . . . . Core Remaining (%) 72 | 100 95 87 . . . 54 . . . 50 . . . 64 49 80 . . Volleys Fired 816 | 8 31 29 103 43 27 37 64 82 68 87 15 85 2 77 50 3 4 1 Largest 3 | 2 2 2 3 3 3 3 3 3 3 3 3 3 1 3 2 1 1 1 Hottest 243 | 80 100 79 102 120 120 119 95 106 95 136 148 243 90 160 160 105 105 105 Shots Fired 1644 | 15 57 58 289 99 58 88 125 145 125 166 23 182 2 116 88 3 4 1 Gun 977 | 15 55 58 279 97 46 83 53 70 41 110 8 51 . 2 9 . . . Cannon 577 | . . . 2 . 3 . 67 56 77 52 12 115 2 108 75 3 4 1 Launcher 52 | . . . 8 2 9 4 5 6 2 2 . 8 . 6 . . . . Special 38 | . 2 . . . . 1 . 13 5 2 3 8 . . 4 . . . Kinetic 961 | . 26 29 189 60 28 55 78 75 84 116 16 112 . 50 43 . . . Thermal 579 | 5 31 29 92 37 21 28 42 51 34 46 4 48 2 60 41 3 4 1 Explosive 52 | . . . 8 2 9 4 5 6 2 2 . 8 . 6 . . . . Electromagnetic 16 | 10 . . . . . . . . . . . 6 . . . . . . Robot Hit Streak 47 | 8 12 12 24 27 31 21 16 47 24 17 10 12 . 8 16 . 8 9 Robot Miss Streak 6 | 1 4 3 3 2 2 2 5 1 4 4 1 6 . 6 3 . . . Penetration Max 1 | . . . . 1 1 . . . . 1 . . . . 1 . . . Secondary Targets 8 | . . . 4 1 2 1 . . . . . . . . . . . . Max Gunslinging Chain 1 | . . . 1 1 1 1 . . . . . . . . . . . . Shots Hit Robots 1053 | 10 32 42 200 68 40 55 69 109 70 122 15 108 . 49 59 . 4 1 Core Hits 568 | 5 13 18 92 33 37 35 41 34 25 49 8 88 . 37 37 15 1 . Critical Kills 7 | . 1 . 2 1 . . . . . 1 . 1 . . 1 . . . Critical Parts Destroyed 5 | . . . . . . . . . 1 4 . . . . . . . . Critical Strikes 41 | . 2 4 8 2 . . 1 . 7 5 . 6 . 2 4 . . . Burn 12 | . 1 4 6 1 . . . . . . . . . . . . . . Meltdown 3 | . . . . . . . . . . 1 . 1 . . 1 . . . Destroy 10 | . 1 . 2 1 . . . . 1 4 . 1 . . . . . . Blast 15 | . . . . . . . 1 . 6 . . 3 . 2 3 . . . Corrupt 1 | . . . . . . . . . . . . 1 . . . . . . Melee Attacks 13 | . . 3 6 3 1 . . . . . . . . . . . . . Impact 12 | . . 3 6 3 . . . . . . . . . . . . . . Slashing 1 | . . . . . 1 . . . . . . . . . . . . . Piercing . | . . . . . . . . . . . . . . . . . . . Sneak Attacks . | . . . . . . . . . . . . . . . . . . . Combat Hostiles . | . . . . . . . . . . . . . . . . . . . Follow-up Attacks . | . . . . . . . . . . . . . . . . . . . Damage Inflicted 29341 | 177 348 616 3618 1431 1580 1393 1932 2107 1993 2854 323 3458 . 3347 3718 261 149 36 Guns 11016 | 131 348 616 2893 1091 591 1092 539 805 417 1457 200 580 . 21 235 . . . Cannons 12582 | . . . . . 53 . 1065 1256 1222 955 123 2069 . 2579 3076 . 148 36 Explosions 5703 | 46 . . 725 340 936 301 328 46 354 442 . 809 . 747 368 261 . . Melee . | . . . . . . . . . . . . . . . . . . . Ramming 40 | . . . . . . . . . . . . . . . 39 . 1 . Kinetic 14649 | . 146 340 2018 665 372 698 816 912 1063 1545 207 1568 . 1896 2403 . . . Thermal 9130 | 76 202 276 875 426 272 394 788 1149 576 867 116 949 . 704 1276 . 148 36 Explosive 5028 | . . . 725 340 936 301 328 46 354 442 . 809 . 747 . . . . Electromagnetic 494 | 101 . . . . . . . . . . . 132 . . . 261 . . Impact . | . . . . . . . . . . . . . . . . . . . Slashing . | . . . . . . . . . . . . . . . . . . . Piercing . | . . . . . . . . . . . . . . . . . . . Highest Corruption 17 | . . . . 1 1 3 1 1 2 17 . 4 4 17 5 . 1 1 Average Corruption 3 | . . . . 1 1 1 1 1 1 8 . 2 4 7 4 . 1 1 Corruption Purged . | . . . . . . . . . . . . . . . . . . . Corruption Blocked . | . . . . . . . . . . . . . . . . . . . Effects 263 | . . . . 4 3 17 1 10 22 53 . 46 2 100 2 . 1 2 Message Errors 65 | . . . . . . 5 . 2 7 19 . 7 . 24 . . 1 . Matter Fused 59 | . . . . . . 4 . . 3 11 . 14 1 24 1 . . 1 Heat Flow Errors 39 | . . . . 1 . 1 . 3 3 5 . 9 1 15 1 . . . Energy Discharges 21 | . . . . . . . . 2 . 6 . 3 . 10 . . . . Parts Rejected 1 | . . . . . . . . . . . . 1 . . . . . . Parts Fused 1 | . . . . 1 . . . . . . . . . . . . . . Data Loss (minor) 28 | . . . . . 2 4 1 . 5 4 . 2 . 10 . . . . Data Loss (major) 21 | . . . . 2 . . . 2 2 3 . 6 . 5 . . . 1 Misfires 11 | . . . . . . . . . 2 3 . 2 . 4 . . . . Alerts 10 | . . . . . . 2 . . . 1 . 2 . 5 . . . . Weapon Failures 7 | . . . . . 1 1 . 1 . 1 . . . 3 . . . . Overload Shots 1 | . . . . . . . 1 . . . . . . . . . . . Overflow Damage 730 | 1 . . 46 5 83 . 12 25 58 68 . 39 . 112 273 . 8 . Projectiles 457 | . . . . . . . 9 25 46 47 . 39 . 65 218 . 8 . Explosions 273 | 1 . . 46 5 83 . 3 . 12 21 . . . 47 55 . . . Melee . | . . . . . . . . . . . . . . . . . . . Knockbacks 21 | . . . . . . . . . 3 . . 6 . 3 9 . . . Impact 1 | . . . . . . . . . . . . . . . 1 . . . Kinetic 18 | . . . . . . . . . 3 . . 6 . 3 6 . . . Secondary 2 | . . . . . . . . . . . . . . . 2 . . . Self-Inflicted Damage 650 | 36 . . 81 . 26 60 28 . 86 . . 101 . 85 145 2 . . Shots 23 | 1 . . 4 . 1 2 1 . 2 . . 4 . 5 2 1 . . Rammed 6 | . . . . . . . . . . . . . . . 5 . 1 . Targets Rammed 6 | . . . . . . . . . . . . . . . 5 . 1 . Kicked . | . . . . . . . . . . . . . . . . . . . Crushed . | . . . . . . . . . . . . . . . . . . . Highest Temperature 580 | 66 58 358 212 201 268 273 231 262 226 253 176 580 85 313 349 22 16 12 Average Temperature 76 | 31 19 47 61 77 56 97 73 58 53 76 92 125 22 58 107 14 10 9 Received Heat Transfer 3596 | . 33 62 318 139 142 163 101 419 146 424 8 533 . 207 717 87 . 97 Effects 10 | . . . . . . . . . . . . 8 . . 2 . . . Shutdowns 3 | . . . . . . . . . . . . 2 . . 1 . . . Energy Bleed 3 | . . . . . . . . . . . . 2 . . 1 . . . Interference 3 | . . . . . . . . . . . . 3 . . . . . . Damage (minor) 1 | . . . . . . . . . . . . 1 . . . . . . Siege Activations . | . . . . . . . . . . . . . . . . . . . Martial Activations . | . . . . . . . . . . . . . . . . . . . Shielding Activations . | . . . . . . . . . . . . . . . . . . . Robots Disrupted . | . . . . . . . . . . . . . . . . . . . Combat Hostiles . | . . . . . . . . . . . . . . . . . . . Robots Corrupted 1 | . . . . . . . . . . . . 1 . . . . . . Combat Hostiles 1 | . . . . . . . . . . . . 1 . . . . . . Parts Fried 2 | 1 . . . . . . . . . . . . . . . 1 . . Impact Corruptions 1 | . . . . . . . . . . . . . . . 1 . . . Robots Melted 3 | . . . . . . . . . . 1 . 1 . . 1 . . . Combat Hostiles 2 | . . . . . . . . . . 1 . 1 . . . . . . Parts Melted 30 | . . 1 5 2 . . 1 8 1 7 . 2 . . 3 . . . Heat Transferred 15347 | 125 536 999 2664 957 518 740 1073 1457 777 1198 250 1373 . 1024 1471 . 148 37 Parts Sabotaged 2 | . . . . . . . . . . . . . . . 1 . . 1 Parts Stolen . | . . . . . . . . . . . . . . . . . . . Parts Stripped . | . . . . . . . . . . . . . . . . . . . Power Chain Reactions 2 | 1 . . . . . . . . . . . . . . . 1 . . Alert | -11 -10 -9 -8 -8 -8 -8 -7 -7 -7 -7 -6 -6 -6 -6 -5 -4 -3 -3 ------- Run | Yrd Mat Mat Mat Gar Mat Gar Fac Gar Fac Gar Fac Gar Fac Gar Fac Fac Res Gar Maximum Alert Level 5 | . . . 2 2 2 3 2 3 2 2 1 5 3 5 5 4 3 2 Low Security (%) 24 | 100 100 100 52 . . . . . 40 38 85 4 . . . . . . Level 1 16 | . . . 14 47 71 2 29 38 47 43 14 6 . . . . . . Level 2 25 | . . . 33 52 28 54 70 38 11 17 . 29 . 5 . . 62 100 Level 3 13 | . . . . . . 43 . 23 . . . 29 100 19 . 69 37 . Level 4 8 | . . . . . . . . . . . . 18 . 28 16 30 . . Level 5 9 | . . . . . . . . . . . . 10 . 45 14 . . . High Security 2 | . . . . . . . . . . . . . . . 69 . . . Max Security . | . . . . . . . . . . . . . . . . . . . Peak Influence 2703 | 10 30 77 560 651 628 961 561 824 463 490 256 1832 979 2703 2306 1264 753 648 Initial 1418 | . . . . 256 317 396 504 245 432 44 256 . 961 609 1418 1100 657 562 Average 675 | 1 2 20 219 467 360 691 448 499 232 283 91 887 924 1612 1875 1099 682 599 Influence Increases 11875 | 25 94 226 1188 415 501 655 489 759 616 626 76 2102 20 2184 1178 304 331 86 Destroy 0b10 Robot/C 5220 | . 40 140 720 220 340 420 260 320 240 300 40 740 . 660 660 100 . 20 Destroy 0b10 Robot/NC 360 | 25 25 15 95 5 25 . 55 10 50 10 10 10 . . 20 . 5 . Destroy Leader 796 | . 18 52 172 30 76 30 72 10 94 40 20 30 . 60 82 10 . . Allied During Kill 140 | . . . . . . 3 1 32 15 8 . 8 . 37 36 . . . Successful Hack 207 | . 9 15 31 . . 14 6 . 73 . . . 18 14 . . 11 16 Disable Machine 495 | . . . 45 . 15 15 45 . 45 30 . 45 . 15 195 45 . . Anti-Garrison Action 3200 | . . . . 100 . 100 . 350 . 200 . 1200 . 1200 . . . 50 Destroy Structure 707 | . 2 4 80 30 45 28 20 37 39 23 6 54 2 153 170 14 . . Partial Spotted 90 | . . . . . . . . . . . . . . . . 45 45 . Lose Combat Pursuer 660 | . . . 45 30 . 45 30 . 60 15 . 15 . 45 15 90 270 . Influence Decreases 11272 | 25 94 226 794 158 542 304 1099 286 1377 199 566 270 981 352 1685 1271 835 208 Entered New Map 6218 | . . . . 138 334 214 457 106 392 19 234 . 871 262 1285 1121 597 188 Time Decay 2896 | 25 94 226 501 . 198 . 482 . 490 . 312 . 110 . 120 140 198 . Lost Part 750 | . . . . 20 10 50 10 40 30 100 . 130 . 70 220 10 40 20 Lost Ally 540 | . . . . . . 40 . 140 40 80 20 140 . 20 60 . . . Purge Threat 868 | . . . 293 . . . 150 . 425 . . . . . . . . . Squads Dispatched 37 | . . 1 4 . 3 . 3 . 4 . 1 . . . 15 3 3 . Investigation 4 | . . . 2 . . . . . 1 . . . . . . . 1 . Extermination 6 | . . . . . . . 2 . 2 . 1 . . . . . 1 . Reinforcement 9 | . . 1 1 . 1 . 1 . 1 . . . . . 1 2 1 . Assault 16 | . . . 1 . . . . . . . . . . . 14 1 . . Garrison 2 | . . . . . 2 . . . . . . . . . . . . . Intercept . | . . . . . . . . . . . . . . . . . . . Searches Triggered . | . . . . . . . . . . . . . . . . . . . Construction Impeded . | . . . . . . . . . . . . . . . . . . . Haulers Reinforced . | . . . . . . . . . . . . . . . . . . . Active Scanning Responses . | . . . . . . . . . . . . . . . . . . . Cargo Convoy Interrupts . | . . . . . . . . . . . . . . . . . . . Stealth | -11 -10 -9 -8 -8 -8 -8 -7 -7 -7 -7 -6 -6 -6 -6 -5 -4 -3 -3 --------- Run | Yrd Mat Mat Mat Gar Mat Gar Fac Gar Fac Gar Fac Gar Fac Gar Fac Fac Res Gar Distress Signals 12 | . 4 1 . . 2 . 1 . 1 . . 1 . . 1 . 1 . Communications Jammed . | . . . . . . . . . . . . . . . . . . . Distress Signals . | . . . . . . . . . . . . . . . . . . . Times Spotted 407 | . 10 9 49 11 19 23 20 27 22 18 3 44 . 33 58 12 28 21 Peak Tracking Total 18 | . 4 2 5 4 9 7 4 5 4 5 1 6 . 6 15 10 10 18 Tactical Retreats 24 | . . . 2 2 . 2 2 . 2 1 . 1 . 2 1 3 6 . Traps | -11 -10 -9 -8 -8 -8 -8 -7 -7 -7 -7 -6 -6 -6 -6 -5 -4 -3 -3 ------- Run | Yrd Mat Mat Mat Gar Mat Gar Fac Gar Fac Gar Fac Gar Fac Gar Fac Fac Res Gar Traps Triggered 59 | . . . 2 4 . 2 2 15 1 1 . 12 . 9 . . 2 9 Indirectly . | . . . . . . . . . . . . . . . . . . . Trap Hack Attempts . | . . . . . . . . . . . . . . . . . . . Triggered . | . . . . . . . . . . . . . . . . . . . Disarmed . | . . . . . . . . . . . . . . . . . . . Reprogrammed . | . . . . . . . . . . . . . . . . . . . Reused . | . . . . . . . . . . . . . . . . . . . Traps Extracted . | . . . . . . . . . . . . . . . . . . . Installed . | . . . . . . . . . . . . . . . . . . . Triggered . | . . . . . . . . . . . . . . . . . . . Machines | -11 -10 -9 -8 -8 -8 -8 -7 -7 -7 -7 -6 -6 -6 -6 -5 -4 -3 -3 ---------- Run | Yrd Mat Mat Mat Gar Mat Gar Fac Gar Fac Gar Fac Gar Fac Gar Fac Fac Res Gar Machines Disabled 52 | . . . 3 1 1 2 3 5 3 4 . 7 . 7 13 3 . . Max in Single Turn 3 | . . . 1 1 1 1 1 1 1 1 . 1 . 1 3 2 . . Garrison Access 1 | . . . . . . . 1 . . . . . . . . . . . Garrison Relay 19 | . . . . 1 . 1 . 5 . 2 . 4 . 6 . . . . Machines Repaired . | . . . . . . . . . . . . . . . . . . . Machines Dismantled 1 | . . . . . . . . . . 1 . . . . . . . . Machines Sabotaged . | . . . . . . . . . . . . . . . . . . . Overloaded Fab Kills . | . . . . . . . . . . . . . . . . . . . Hacking | -11 -10 -9 -8 -8 -8 -8 -7 -7 -7 -7 -6 -6 -6 -6 -5 -4 -3 -3 --------- Run | Yrd Mat Mat Mat Gar Mat Gar Fac Gar Fac Gar Fac Gar Fac Gar Fac Fac Res Gar Machines Accessed 60 | . 3 4 13 2 2 2 10 1 9 1 2 1 2 1 . . 6 1 Terminals 38 | . 2 2 9 2 1 2 5 1 6 1 1 1 . 1 . . 3 1 Fabricators 5 | . . . . . . . 2 . 1 . . . 1 . . . 1 . Repair Stations 3 | . 1 1 . . . . . . 1 . . . . . . . . . Recycling Units 2 | . . . 1 . . . . . . . . . . . . . 1 . Scanalyzers 4 | . . 1 2 . . . 1 . . . . . . . . . . . Garrison Access 8 | . . . 1 . 1 . 2 . 1 . 1 . 1 . . . 1 . Total Hacks 120 | . 8 11 33 5 4 3 14 2 17 4 2 1 2 1 . . 11 2 Successful 53 | . 6 7 15 1 1 1 4 . 9 . 1 . 2 1 . . 4 1 Failed 67 | . 2 4 18 4 3 2 10 2 8 4 1 1 . . . . 7 1 Catastrophic 15 | . . 1 3 1 . 1 3 . . 1 1 . . . . . 3 1 Database Lockouts . | . . . . . . . . . . . . . . . . . . . Manual 35 | . 4 5 9 . 1 . 6 . 6 . . . 1 . . . 3 . Terminals 86 | . 6 7 23 5 3 3 9 2 13 4 1 1 . 1 . . 6 2 Fabricators 5 | . . . . . . . 2 . 1 . . . 1 . . . 1 . Repair Stations 6 | . 2 2 . . . . . . 2 . . . . . . . . . Recycling Units 5 | . . . 2 . . . . . . . . . . . . . 3 . Scanalyzers 9 | . . 2 6 . . . 1 . . . . . . . . . . . Garrison Access 9 | . . . 2 . 1 . 2 . 1 . 1 . 1 . . . 1 . Terminal Hacks 24 | . 1 2 7 1 . 1 2 . 5 . . . . 1 . . 3 1 Part Schematic 1 | . . 1 . . . . . . . . . . . . . . . . Prototype ID Bank 4 | . . . 3 . . . . . . . . . . . . . 1 . Emergency Access Points 2 | . . . . . . . . . . . . . . 1 . . 1 . Terminal Index 1 | . . . . . . . . . 1 . . . . . . . . . Unreport Threat 4 | . . . 2 . . . 1 . 1 . . . . . . . . . Locate Traps 3 | . 1 . 1 . . . . . 1 . . . . . . . . . Hauler Manifests 1 | . . 1 . . . . . . . . . . . . . . . . Zone Layout 5 | . . . 1 . . . 1 . 2 . . . . . . . 1 . Garrison Registry 2 | . . . . 1 . 1 . . . . . . . . . . . . Security Stations 1 | . . . . . . . . . . . . . . . . . . 1 Fabricator Hacks . | . . . . . . . . . . . . . . . . . . . Repair Station Hacks 5 | . 2 2 . . . . . . 1 . . . . . . . . . Scan Component 3 | . 1 1 . . . . . . 1 . . . . . . . . . Repair 2 | . 1 1 . . . . . . . . . . . . . . . . Recycling Unit Hacks . | . . . . . . . . . . . . . . . . . . . Scanalyzer 8 | . . 2 6 . . . . . . . . . . . . . . . Insert Component 4 | . . 1 3 . . . . . . . . . . . . . . . Analyze 4 | . . 1 3 . . . . . . . . . . . . . . . Garrison Access Hacks 8 | . . . 1 . 1 . 2 . 1 . 1 . 1 . . . 1 . Unlock Access 7 | . . . 1 . 1 . 1 . 1 . 1 . 1 . . . 1 . Seal Access 1 | . . . . . . . 1 . . . . . . . . . . . Unauthorized Hacks 8 | . 3 1 1 . . . . . 2 . . . 1 . . . . . Terminals 6 | . 3 1 1 . . . . . 1 . . . . . . . . . Assimilate 1 | . . . . . . . . . 1 . . . . . . . . . Botnet 4 | . 2 1 1 . . . . . . . . . . . . . . . Operators 1 | . 1 . . . . . . . . . . . . . . . . . Fabricators 2 | . . . . . . . . . 1 . . . 1 . . . . . Fabnet 2 | . . . . . . . . . 1 . . . 1 . . . . . Repair Stations . | . . . . . . . . . . . . . . . . . . . Recycling Units . | . . . . . . . . . . . . . . . . . . . Scanalyzers . | . . . . . . . . . . . . . . . . . . . Garrison Access . | . . . . . . . . . . . . . . . . . . . Data Cores Recovered 1 | . . . . . . . . . 1 . . . . . . . . . Used . | . . . . . . . . . . . . . . . . . . . Hacking Detections 52 | . 3 4 13 2 1 2 8 1 8 1 1 1 2 . . . 4 1 Full Trace Events 5 | . . . 1 1 . 1 . . . . . . . . . . 1 1 Feedback Events . | . . . . . . . . . . . . . . . . . . . Feedback Blocked . | . . . . . . . . . . . . . . . . . . . Robot Schematics Acquired . | . . . . . . . . . . . . . . . . . . . Robots Built . | . . . . . . . . . . . . . . . . . . . Authchips . | . . . . . . . . . . . . . . . . . . . Time . | . . . . . . . . . . . . . . . . . . . Total Robot Build Rating . | . . . . . . . . . . . . . . . . . . . Part Schematics Acquired 5 | . . 2 3 . . . . . . . . . . . . . . . Parts Built . | . . . . . . . . . . . . . . . . . . . Authchips . | . . . . . . . . . . . . . . . . . . . Time . | . . . . . . . . . . . . . . . . . . . Total Part Build Rating . | . . . . . . . . . . . . . . . . . . . Parts Repaired 2 | . 1 1 . . . . . . . . . . . . . . . . Time 58 | . 26 32 . . . . . . . . . . . . . . . . Parts Recycled . | . . . . . . . . . . . . . . . . . . . Recycled Matter . | . . . . . . . . . . . . . . . . . . . Retrieved Matter . | . . . . . . . . . . . . . . . . . . . Retrieved Components . | . . . . . . . . . . . . . . . . . . . Parts Scanalyzed 4 | . . 1 3 . . . . . . . . . . . . . . . Part Schematics Acquired 4 | . . 1 3 . . . . . . . . . . . . . . . Parts Damaged 1 | . . 1 . . . . . . . . . . . . . . . . Bothacking | -11 -10 -9 -8 -8 -8 -8 -7 -7 -7 -7 -6 -6 -6 -6 -5 -4 -3 -3 ------------ Run | Yrd Mat Mat Mat Gar Mat Gar Fac Gar Fac Gar Fac Gar Fac Gar Fac Fac Res Gar Used RIF Installer 6 | . . . . 1 . 1 . 1 . 1 . 1 . 1 . . . . Signal Jammer 1 | . . . . . . . . . . . . 1 . . . . . . Zone Cloak 1 | . . . . . . 1 . . . . . . . . . . . . Watcher Feeds 1 | . . . . . . . . . . 1 . . . . . . . . Autooverride 2 | . . . . . . . . 1 . . . . . 1 . . . . Robots Hacked 36 | . . . . . . 1 . 14 3 2 1 6 . 2 7 . . . Non-combat 3 | . . . . . . . . . 1 . 1 . . . 1 . . . Combat 33 | . . . . . . 1 . 14 2 2 . 6 . 2 6 . . . Autooverrided 4 | . . . . . . . . 3 . . . . . . 1 . . . Robot Hacks Applied 30 | . . . . . . 1 . 13 4 2 1 6 . . 3 . . . parse_system 1 | . . . . . . . . 1 . . . . . . . . . . drop_inventory 1 | . . . . . . . . . . . 1 . . . . . . . find_recycling 1 | . . . . . . . . . . . . . . . 1 . . . purge_threat 2 | . . . . . . . . . 2 . . . . . . . . . amplify_resonance 6 | . . . . . . . . 3 1 . . 1 . . 1 . . . disable_weapons 1 | . . . . . . . . . . . . 1 . . . . . . streamctrl_high 3 | . . . . . . . . 2 . . . 1 . . . . . . formatsys_high 15 | . . . . . . 1 . 7 1 2 . 3 . . 1 . . . Relay Couplers Released 83 | . . . . 6 . 3 . 21 . 9 . 17 . 27 . . . . Machine Destruction 76 | . . . . 3 . 3 . 17 . 9 . 17 . 27 . . . . Programmers 7 | . . . . 3 . . . 4 . . . . . . . . . . Attached 21 | . . . . . . 1 . 7 3 1 1 4 . . 3 1 . . Fabnet Peak Effective % 4 | . . . . . . . . . . . 3 3 3 3 4 1 . . Autooverrided 6 | . . . . . . . . . . . . . . 2 4 . . . Robots Rewired 6 | . . . . . . 2 . . . . . 4 . . . . . . Allies Hacked . | . . . . . . . . . . . . . . . . . . . Hacks Repelled . | . . . . . . . . . . . . . . . . . . . Allies | -11 -10 -9 -8 -8 -8 -8 -7 -7 -7 -7 -6 -6 -6 -6 -5 -4 -3 -3 -------- Run | Yrd Mat Mat Mat Gar Mat Gar Fac Gar Fac Gar Fac Gar Fac Gar Fac Fac Res Gar Total Allies 37 | . . . . . . 3 . 11 2 5 . 8 . 2 6 . . . Largest Group 3 | . . . . . . 2 1 3 1 3 1 3 1 2 3 . . . Highest-Rated Group 153 | . . . . . . 62 31 61 32 140 20 129 116 153 124 . . . Highest-Rated Ally 116 | . . . . . . 31 31 29 32 62 20 116 116 116 116 . . . Total Orders 14 | . . . . . . . . 4 . . . . . 10 . . . . STAY 9 | . . . . . . . . 3 . . . . . 6 . . . . FOLLOW 5 | . . . . . . . . 1 . . . . . 4 . . . . Ally Attacks 188 | . . . . . . 10 1 62 16 29 . 19 . 18 33 . . . Total Damage 4621 | . . . . . . 197 . 897 419 403 . 616 . 979 1110 . . . Kills 28 | . . . . . . 1 . 5 4 1 . 3 . 6 8 . . . Allies Corrupted 2 | . . . . . . . . . . 2 . . . . . . . . Allies Melted 1 | . . . . . . . . . . . . 1 . . . . . . Intel | -11 -10 -9 -8 -8 -8 -8 -7 -7 -7 -7 -6 -6 -6 -6 -5 -4 -3 -3 ------- Run | Yrd Mat Mat Mat Gar Mat Gar Fac Gar Fac Gar Fac Gar Fac Gar Fac Fac Res Gar Active Infowar (turns) 6591 | 34 833 862 1186 173 195 412 183 . 515 79 795 25 184 28 607 255 225 . Sensors 2203 | . . . . . . . . . 115 78 793 10 184 28 515 255 225 . Structural 490 | . . . . . . . 119 . 123 . 212 . . . . . 36 . Seismic 4051 | 34 833 862 1186 173 195 412 64 . 277 . . 15 . . . . . . Spoofing 99 | . . . . . . . . . . 1 . . . . 98 . . . Robot Analysis Total . | . . . . . . . . . . . . . . . . . . . Derelict Logs Recovered . | . . . . . . . . . . . . . . . . . . . Drone Launches . | . . . . . . . . . . . . . . . . . . . Drone Recoveries . | . . . . . . . . . . . . . . . . . . . Exploration | -11 -10 -9 -8 -8 -8 -8 -7 -7 -7 -7 -6 -6 -6 -6 -5 -4 -3 -3 ------------- Run | Yrd Mat Mat Mat Gar Mat Gar Fac Gar Fac Gar Fac Gar Fac Gar Fac Fac Res Gar Turns Passed 20719 | 168 833 862 2276 705 401 869 1248 1566 1286 1460 821 3172 231 3141 781 287 404 208 Spaces Moved 9584 | 76 413 371 958 219 162 279 724 724 527 550 423 1247 103 1125 232 493 796 162 Core 454 | 3 . . . . . . . . . . . . . . 3 178 128 142 Treads 2624 | 70 413 220 203 126 . 18 . 26 36 170 . 37 . 1076 229 . . . Legs . | . . . . . . . . . . . . . . . . . . . Wheels 5503 | 3 . 151 755 93 162 261 724 698 491 380 423 1210 103 49 . . . . Hover . | . . . . . . . . . . . . . . . . . . . Flight 1003 | . . . . . . . . . . . . . . . . 315 668 20 Fastest Speed 29 | 50 160 125 155 165 150 165 130 160 150 150 155 155 205 205 50 40 40 29 Average Speed 169 | 152 160 176 183 213 164 172 138 167 193 199 172 210 208 243 249 43 41 47 Slowest Speed 650 | 160 160 240 240 400 165 245 160 405 650 250 225 330 220 253 255 50 50 50 Overloaded Moves . | . . . . . . . . . . . . . . . . . . . Propulsion Burnouts . | . . . . . . . . . . . . . . . . . . . Robots Hopped 4 | . . . . . . . . . . . . . . . . 3 1 . Potential Cave-ins . | . . . . . . . . . . . . . . . . . . . Cave-ins Triggered . | . . . . . . . . . . . . . . . . . . . Exploration Rate (%) 37 | 5 82 35 77 39 23 40 26 74 22 40 17 84 3 73 9 11 32 21 Regions Visited 18 Branch Regions . Pre-discovered Areas . | . . . . . . . . . . . . . . . . . . . Known Exits Taken 8 | . . . 1 . 1 . 1 . 1 . 1 . 1 . . 1 1 . Unknown Exits Taken 4 | 1 1 1 . . . . . . . . . . . . 1 . . . Scrap Searched . | . . . . . . . . . . . . . . . . . . . Spaces Dug 92 | . 2 3 25 . 14 . 11 5 12 . 5 5 2 5 2 1 . . Terrain Destroyed 361 | 3 2 3 78 . 51 18 18 22 45 4 5 28 2 22 55 5 . . Melee 10 | . . 3 6 . 1 . . . . . . . . . . . . . Projectile 85 | . 2 . 2 . . 2 11 . 22 1 5 4 2 10 23 1 . . AOE 266 | 3 . . 70 . 50 16 7 22 23 3 . 24 . 12 32 4 . . Terrain Rammed . | . . . . . . . . . . . . . . . . . . . Walls Destroyed . | . . . . . . . . . . . . . . . . . . . Machines Disabled . | . . . . . . . . . . . . . . . . . . . Actions | -11 -10 -9 -8 -8 -8 -8 -7 -7 -7 -7 -6 -6 -6 -6 -5 -4 -3 -3 --------- Run | Yrd Mat Mat Mat Gar Mat Gar Fac Gar Fac Gar Fac Gar Fac Gar Fac Fac Res Gar Total 12601 | 111 529 523 1240 366 241 606 888 974 697 764 489 1629 118 1392 316 560 865 293 Wait 1078 | 4 57 65 81 57 26 232 46 52 50 50 25 109 13 118 1 36 46 10 Move 9561 | 75 412 370 957 218 162 278 723 723 527 549 423 1246 102 1123 231 486 794 162 Hop 4 | . . . . . . . . . . . . . . . . 3 1 . Pick Up 211 | 11 12 20 12 6 2 11 11 18 10 21 3 36 . 18 7 7 3 3 Fast Attach 58 | 7 2 3 8 1 3 . 8 . 3 2 5 4 . 2 . 6 3 1 Attach 109 | 1 . 3 2 3 1 7 3 6 5 11 1 19 . 12 15 9 6 5 Detach 13 | 1 . . . . . . 2 . . . . . . . . 3 4 3 Swap 273 | 1 6 10 40 17 13 19 15 29 26 20 11 47 1 11 7 . . . Drop 177 | 3 9 20 31 4 6 5 16 7 8 12 6 23 . 17 . 7 3 . Fire 816 | 8 31 29 103 43 27 37 64 82 68 87 15 85 2 77 50 3 4 1 Melee 13 | . . 3 6 3 1 . . . . . . . . . . . . . Ram 1 | . . . . . . . . . . . . . . . . . 1 . Kick . | . . . . . . . . . . . . . . . . . . . Crush 5 | . . . . . . . . . . . . . . . 5 . . . Escape Stasis 224 | . . . . 14 . 4 . 57 . 2 . 25 . 14 . . . 108 Rewire 50 | . . . . . . 13 . . . 2 . 35 . . . . . . Trap . | . . . . . . . . . . . . . . . . . . . Miscellaneous 8 | . . . . . . . . . . 8 . . . . . . . . Route ------- -11/Scrapyard -10/Materials (discovered 4 exits: *Mat x2 / [*Min] / [*Sub]) -9/Materials -8/Materials (discovered 4 exits: *Fac x2 / [*Sto] / Gar) -8/Garrison (discovered 3 exits: *Mat x3) -8/Materials (discovered 2 exits: [*Sto] / Gar) -8/Garrison (discovered 3 exits: *Fac x3) -7/Factory (discovered 2 exits: *Fac / Gar) -7/Garrison (discovered 3 exits: *Fac x3) -7/Factory (discovered 3 exits: *Fac / [*Low] / Gar) -7/Garrison -6/Factory -6/Garrison (discovered 3 exits: *Fac x2 / *Fac) -6/Factory -6/Garrison (discovered 3 exits: *Fac x3) -5/Factory -4/Factory -3/Research -3/Garrison History --------- Turn | Location | Event 51 | -11/Scrapyard | Discovered new exit (range 16) 169 | -11/Scrapyard | Entered Materials 170 | -10/Materials | Met a group of wandering Federalists 324 | -10/Materials | Build established: Mutant 577 | -10/Materials | Discovered new exit (range 14) 802 | -10/Materials | Discovered new exit (range 5) 842 | -10/Materials | Discovered new exit (range 13) 951 | -10/Materials | Discovered new exit (range 4) 991 | -10/Materials | Repaired Ion Engine 1002 | -10/Materials | Entered another Materials area 1002 | -9/Materials | Evolved 2 slots: Propulsion x1, Utility x1 1425 | -9/Materials | Discovered new exit (range 12) 1581 | -9/Materials | Repaired Shield Generator 1864 | -9/Materials | Entered another Materials area 1864 | -8/Materials | Evolved 2 slots: Utility x1, Weapon x1 2372 | -8/Materials | Build established: Gunner 2571 | -8/Materials | Discovered new exit (range 12) 2864 | -8/Materials | Discovered new exit (range 11) 2915 | -8/Materials | Build established: Tank 3617 | -8/Materials | Build established: Scavenger-Gunner 3728 | -8/Materials | Discovered new exit (range 8) 3864 | -8/Materials | First assault squad dispatched 4009 | -8/Materials | Identified exit to Garrison 4140 | -8/Materials | Entered Garrison 4159 | -8/Garrison | Discovered new exit (range 93) 4159 | -8/Garrison | Discovered new exit (range 67) 4159 | -8/Garrison | Discovered new exit (range 53) 4276 | -8/Garrison | Triggered checkpoint 4492 | -8/Garrison | Build established: Scavenger-Tank 4559 | -8/Garrison | Triggered checkpoint 4699 | -8/Garrison | Triggered checkpoint 4727 | -8/Garrison | Installed Relay Interface Framework 4780 | -8/Garrison | Garrison Relay disabled 4845 | -8/Garrison | Entered Materials 4869 | -8/Materials | Discovered new exit (range 16) 5077 | -8/Materials | Garrison activated, responded to threat 5168 | -8/Materials | Destroyed 8 combat bots 5246 | -8/Materials | Identified exit to Garrison 5246 | -8/Materials | Entered Garrison 5266 | -8/Garrison | Discovered new exit (range 67) 5266 | -8/Garrison | Discovered new exit (range 42) 5266 | -8/Garrison | Discovered new exit (range 49) 5564 | -8/Garrison | Destroyed 7 combat bots 5771 | -8/Garrison | Lost 4 parts (1n1u2w) 5803 | -8/Garrison | Expanded RIF knowledge: Zone Cloak 5824 | -8/Garrison | Triggered checkpoint 5990 | -8/Garrison | Triggered checkpoint 6020 | -8/Garrison | Garrison Relay disabled 6115 | -8/Garrison | Entered Factory 6115 | -7/Factory | Accompanied by 1 ally 6115 | -7/Factory | Evolved 2 slots: Propulsion x1, Utility x1 6800 | -7/Factory | Discovered new exit (range 4) 6819 | -7/Factory | Identified exit to Factory 7088 | -7/Factory | Build established: Tank 7357 | -7/Factory | Identified exit to Garrison 7363 | -7/Factory | Entered Garrison 7434 | -7/Garrison | Expanded RIF knowledge: Autooverride 7486 | -7/Garrison | Garrison Relay disabled 7541 | -7/Garrison | Triggered checkpoint 7634 | -7/Garrison | Triggered checkpoint 7634 | -7/Garrison | Triggered checkpoint 7683 | -7/Garrison | Lost 3 allies 7796 | -7/Garrison | Discovered new exit (range 12) 7861 | -7/Garrison | Triggered checkpoint 7961 | -7/Garrison | Garrison Relay disabled 7971 | -7/Garrison | Garrison Relay disabled 8236 | -7/Garrison | Discovered new exit (range 10) 8253 | -7/Garrison | Build established: Bothacker-Gunner 8271 | -7/Garrison | Triggered checkpoint 8349 | -7/Garrison | Garrison Relay disabled 8517 | -7/Garrison | Triggered checkpoint 8547 | -7/Garrison | Triggered checkpoint 8625 | -7/Garrison | Lost 3 allies 8710 | -7/Garrison | Discovered new exit (range 9) 8797 | -7/Garrison | Triggered checkpoint 8827 | -7/Garrison | Garrison Relay disabled 8924 | -7/Garrison | Identified exit to Factory 8929 | -7/Garrison | Entered Factory 8929 | -7/Factory | Accompanied by 1 ally 9086 | -7/Factory | Discovered exit to Factory (range 5) 10000 | -7/Factory | Build established: Gunner 10121 | -7/Factory | Discovered new exit (range 16) 10215 | -7/Factory | Identified exit to Garrison 10215 | -7/Factory | Entered Garrison 10215 | -7/Garrison | Accompanied by 1 ally 10265 | -7/Garrison | Expanded RIF knowledge: Watcher Feeds 10288 | -7/Garrison | P-60 Hacker assimilated allied Administrator 4a 10465 | -7/Garrison | Triggered checkpoint 10536 | -7/Garrison | Lost 5 parts (2n1u2w) 10548 | -7/Garrison | Found embedded Infiltrators 10550 | -7/Garrison | Garrison Relay disabled 10723 | -7/Garrison | Triggered checkpoint 10747 | -7/Garrison | Triggered checkpoint 10799 | -7/Garrison | Lost 4 allies 11012 | -7/Garrison | Rescued a captive Derelict 11065 | -7/Garrison | Discovered exit to Factory (range 10) 11123 | -7/Garrison | Triggered checkpoint 11145 | -7/Garrison | Garrison Relay disabled 11466 | -7/Garrison | Build established: Bothacker-Tank 11673 | -7/Garrison | System corruption reached 10% 11675 | -7/Garrison | Entered Factory 11675 | -6/Factory | Accompanied by 1 ally 11675 | -6/Factory | Evolved 2 slots: Power x1, Utility x1 12039 | -6/Factory | Build established: Bothacker-Skirmisher 12496 | -6/Factory | Identified exit to Garrison 12496 | -6/Factory | Entered Garrison 12514 | -6/Garrison | Triggered checkpoint 12596 | -6/Garrison | Triggered checkpoint 12653 | -6/Garrison | Garrison Relay disabled 12709 | -6/Garrison | Triggered checkpoint 12791 | -6/Garrison | Build established: Bothacker-Gunner 12853 | -6/Garrison | Triggered checkpoint 12911 | -6/Garrison | Lost 5 parts (2p1n1u1w) 12918 | -6/Garrison | Destroyed 7 combat bots 13018 | -6/Garrison | Triggered checkpoint 13076 | -6/Garrison | Garrison Relay disabled 13181 | -6/Garrison | Discovered new exit (range 15) 13552 | -6/Garrison | Triggered checkpoint 13664 | -6/Garrison | Lost 3 parts (1p1n1w) 13743 | -6/Garrison | Discovered new exit (range 10) 13798 | -6/Garrison | Triggered checkpoint 13846 | -6/Garrison | Expanded RIF knowledge: Signal Jamming 13944 | -6/Garrison | Triggered checkpoint 14072 | -6/Garrison | Triggered checkpoint 14103 | -6/Garrison | Discovered new exit (range 6) 14112 | -6/Garrison | Identified exit to Factory 14379 | -6/Garrison | Build established: Scavenger-Gunner 14421 | -6/Garrison | Triggered checkpoint 14469 | -6/Garrison | Lost 3 allies 14543 | -6/Garrison | Rewired B-86 Titan 15096 | -6/Garrison | Triggered checkpoint 15231 | -6/Garrison | Garrison Relay disabled 15668 | -6/Garrison | Entered Factory 15668 | -6/Factory | Accompanied by 1 ally 15888 | -6/Factory | Identified exit to Garrison 15899 | -6/Factory | Entered Garrison 15899 | -6/Garrison | Accompanied by 1 ally 16035 | -6/Garrison | Triggered checkpoint 16073 | -6/Garrison | Garrison Relay disabled 16239 | -6/Garrison | Triggered checkpoint 16505 | -6/Garrison | Build established: Bothacker-Gunner 16614 | -6/Garrison | Triggered checkpoint 16721 | -6/Garrison | Triggered checkpoint 17041 | -6/Garrison | Garrison Relay disabled 17135 | -6/Garrison | Discovered new exit (range 8) 17173 | -6/Garrison | Garrison Relay disabled 17233 | -6/Garrison | Triggered checkpoint 17269 | -6/Garrison | Garrison Relay disabled 17545 | -6/Garrison | Build established: Bothacker-Mutant 17551 | -6/Garrison | Discovered new exit (range 10) 17621 | -6/Garrison | Garrison Relay disabled 17639 | -6/Garrison | Triggered checkpoint 17929 | -6/Garrison | Build established: Bothacker-Gunner 18011 | -6/Garrison | Local machine network offline 18038 | -6/Garrison | Discovered new exit (range 10) 18131 | -6/Garrison | Triggered checkpoint 18188 | -6/Garrison | Expanded RIF knowledge: Autooverride 18218 | -6/Garrison | Garrison Relay disabled 18419 | -6/Garrison | Triggered checkpoint 18524 | -6/Garrison | Build established: Botlord-Tank 19001 | -6/Garrison | Identified exit to Factory 19023 | -6/Garrison | System corruption reached 10% 19040 | -6/Garrison | Entered Factory 19040 | -5/Factory | Accompanied by 1 ally 19040 | -5/Factory | Evolved 2 slots: Utility x1, Weapon x1 19282 | -5/Factory | High security lockdown imminent 19362 | -5/Factory | High security lockdown engaged 19410 | -5/Factory | Local machine network offline 19441 | -5/Factory | Allied Derelicts emerged from ambush trap array 19556 | -5/Factory | Lost 3 allies 19777 | -5/Factory | Discovered new exit (range 14) 19783 | -5/Factory | Destroyed 12 combat bots 19820 | -5/Factory | Released all parts (5) 19821 | -5/Factory | Entered another Factory area 19821 | -4/Factory | Evolved 2 slots: Utility x2 19851 | -4/Factory | Lost 19 parts (5p5n5u4w) 20071 | -4/Factory | First assault squad dispatched 20079 | -4/Factory | Discovered new exit (range 15) 20085 | -4/Factory | Identified exit to Research 20090 | -4/Factory | Build established: Mutant 20108 | -4/Factory | Entered Research 20108 | -3/Research | Evolved 2 slots: Utility x2 20435 | -3/Research | Spotted B-86 Titan 20461 | -3/Research | Core integrity fell below 50% 20471 | -3/Research | Spotted B-86 Titan 20512 | -3/Research | Identified exit to Garrison 20512 | -3/Research | Entered Garrison 20625 | -3/Garrison | Learned Research security intel 20712 | -3/Garrison | Spotted B-86 Titan 20713 | -3/Garrison | Triggered checkpoint 20715 | -3/Garrison | Triggered checkpoint 20718 | -3/Garrison | Core integrity fell below 20% 20720 | -3/Garrison | Destroyed by P-80 Master with Gamma Rifle Last Messages --------------- 20715_ Field strength at 90. 20715_ Field strength at 69. 20715_ Garrison Door breached. 20715_ Beams of light sweep through the air. An alarm sounds. 20716_ Cesium-ion Thruster severed. 20716_ C-30 ARC bursts open, deploying its payload. 20716_ L-61 Swordsman unfolds itself. 20716_ G-67 Veteran unfolds itself. 20716_ Cesium-ion Thruster destroyed. 20716_ Field strength at 39. 20717_ Slug penetrates Wall. 20717_ Penetrated by Slug. 20717_ Field strength at 8. Garrison Door activated. 20718_ Stasis field depleted. 20718_ Critical hit (Burn: +37). 20719_ B-86 Titan activates siege mode. 20719_ Critical hit (Burn: +50). Map ----- +----------------------------------------------------+ | ?????????????????????????????????????????????????? | | ?????????????????????????????????????????????????? | | ?????????????????????????????????????????????????? | | ?????????????????????????????????????????????????? | | ?????????????????????????????????????????????????? | | ?????????????????????????????????????????????????? | | ?????????????????????????????????????????????????? | | ?????????????????????????????????????????????????? | | ?????????????????????????????????????????????????? | | ????????????? ?????????????????????????????????? | | ????????????# #?#????? ???????????????????????? | | ????????????# ## ???? ???????????????????????? | | ????????????# ## ""## ##?????????????????????? | | ????????????# #?????????????????????? | | ????????????# #?????????????????????? | | ????????????# #?????????????????????? | | ????????????# ## ## #?????????????????????? | | ??????????### ## ## ###???????????????????? | | ??????????# h #???????????????????? | | ??????????#" s h #???????????????????? | | ??????????#%s #???????????????????? | | ??????????#Cs ????????????????????? | | ????????????# ## Y#?????????????????????? | | ??########### # c# ###########???????????? | | ??# c p #???????????? | | ??# g c c@ p #???????????? | | ??# ######## g g ######## #???????????? | | ??# #??????##;### l######?????????????????????? | | ??# #???????# ??#%C ???????????????????????????? | | ??# #???????#???#####???????????????????????????? | | ??# #???????????????????????????????????????????? | | ??# ^#???????????????????????????????????????????? | | ??# #???????????????????????????????????????????? | | ??# #???????????????????????????????????????????? | | ??# #???????????????????????????????????????????? | | ??# #???????????????????????????????????????????? | | ### #???????????????????????????????????????????? | | #???????????????????????????????????????????? | | #???????????????????????????????????????????? | | ## ###???????????????????????????????????????????? | | ?# #?????????????????????????????????????????????? | | ?# #????????#######??????????????????????????????? | | ?# #????????#"""""#??????????????????????????????? | | ## ########### ##??????????????????????????????? | | #??????????????????????????????? | | ######## ###### #??????????????????????????????? | | ???????# #????# #??????????????????????????????? | | ???????#####????# #??????????????????????????????? | | ????????????????# #??????????????????????????????? | | ?????????????#### #??????????????????????????????? | +----------------------------------------------------+ Best States ------------- Heat Dissipation 75 Coolant Potential 80 Energy Generation 35 Energy Capacity 505 Matter Stores 300 Matter Capacity 300 Sight Range 16 Robot Scan Range 16 Terrain Scan Density 10 Base Temperature (-) 200 Armor Coverage 450 Resistance: KI 30 Resistance: TH 15 Evasion (%) 62 Targeting Accuracy 8 Core Analysis 6 Recoil Reduction 4 Relay Coupler Types 2 Relay Coupler Value 34 Item Schematics ----------------- Huge Storage Unit | -9/Materials | Hacked Plasma Cutter | -9/Materials | Scanalyzed Hpw. Tractor Beam | -8/Materials | Scanalyzed Hacking Suite | -8/Materials | Scanalyzed Arm. Wheel | -8/Materials | Scanalyzed Robot Schematics ------------------ None Fabricated ------------ Nothing Repaired ---------- Ion Engine | 43% | -10/Materials Shield Generator | 30% | -9/Materials Alien Tech Used ----------------- None Achievements -------------- None Challenges ------------ None Game ------ Seed CoolingSuspensionDirector Manual? 0 Play Time 03:20:56 Cumulative 78.0 hours Start 2025.08.15 @ 20:59:06 End 2025.08.18 @ 00:59:04 Sessions 8 Manual Loads 0 Difficulty Rogue Special Mode None Game No. 34 Rogue 31 Adventurer 0 Explorer 3 Win Type - Total 2 Types 1/0/0/1/0/0/0/0/0/0 Lore% 62 Gallery% 50 Achievement% 50 Wizard Run 0 Options --------- Layout 1 ASCII 0 Keyboard 0 Movement Mouse Keybinds 0 Fullscreen 2 Font 24/Smallcaps Map View 50x35 Zoom Use 0% Tactical HUD 1 Map Filters NONE Filters NONE Steam 1 RUN: bbb40705-228d-4107-893d-ce40f3c6e183